lending/lending_fUSD_20240809
["ID","MTS","AMOUNT","RATE_DAILY","PERIOD"]
[334565695,1723229441350,-2123.07399969,0.0001099,3]
[334565699,1723229444998,-576.09,0.0001099,3]
[334565700,1723229445010,-301.25385499,0.0001099,3]
[334565701,1723229445022,-446.25,0.0001099,3]
[334565702,1723229445036,-3165.37107988,0.0001099,3]
[334565703,1723229445046,-1010.91291094,0.0001099,2]
[334565704,1723229445055,-200.0,0.0001099,2]
[334565705,1723229445064,-200.0,0.0001099,2]
[334565706,1723229445074,-337.4561513,0.00010997,2]
[334565707,1723229445085,-999.0033655,0.00010997,2]
[334565708,1723229445095,-12775.17707199,0.00010997,2]
[334565709,1723229445104,-500.0,0.00010998,2]
[334565710,1723229445113,-1304.84896795,0.00010999,2]
[334565711,1723229445122,-500.0,0.00010999,2]
[334565712,1723229445132,-500.0,0.00010999,2]
[334565713,1723229445141,-527.0,0.00011,2]
[334565714,1723229445151,-46146.7411479,0.00011,2]
[334565715,1723229445163,-1016.18242901,0.00011,2]
[334565726,1723229446433,-1745.585,0.00011,2]
[334565727,1723229446445,-107.78022336,0.00011,2]
[334565728,1723229446454,-407.18429601,0.00011,2]
[334565729,1723229446465,-33724.11572845,0.00011,2]
[334565730,1723229446476,-2499.6238,0.00011,2]
[334565731,1723229446487,-1812.894552,0.00011,2]
[334565732,1723229446580,-4116.0002468,0.00011,2]
[334565733,1723229446595,-577.4,0.00011,2]
[334565734,1723229446605,-769.67,0.00011,2]
[334565735,1723229446625,-775.84697186,0.00011,2]
[334565736,1723229446637,-450.0,0.00011,2]
[334565739,1723229613437,5000.0,0.00025,60]
[334565742,1723229731599,3000.0,0.00025,60]
[334565743,1723229765487,393.52,8.219e-05,2]
[334565744,1723229843845,1000.0,0.00025,60]
[334565748,1723230424366,373.84,8.219e-05,2]
[334565749,1723230488369,450.30829959,8.219e-05,2]
[334565752,1723230611108,-398.0,9.711e-05,2]
[334565753,1723230611150,-2437.94447019,9.712e-05,2]
[334565754,1723230611198,-2835.94447019,9.712e-05,2]
[334565755,1723230611250,-2835.94447019,9.712e-05,2]
[334565756,1723230611308,-2835.94447019,9.712e-05,2]
[334565757,1723230611377,-2835.94447019,9.712e-05,2]
[334565758,1723230611436,-748.15442102,9.712e-05,2]
[334565759,1723230611499,-2835.94447019,9.712e-05,2]
[334565760,1723230611736,-2678.47875784,9.712e-05,2]
[334565761,1723230611776,-157.46571235,9.712e-05,2]
[334565767,1723230632181,-42.53428765,9.712e-05,2]
[334565768,1723230632190,-184.22,9.785e-05,2]
[334565769,1723230632200,-292.49,9.815e-05,2]
[334565770,1723230632209,-150.0,9.888e-05,2]
[334565771,1723230632219,-79.77164476,9.909e-05,2]
[334565772,1723230632232,-500.16835524,9.909e-05,2]
[334565773,1723230632243,-839.1304313,9.909e-05,2]
[334565774,1723230632254,-977.84602417,9.909e-05,2]
[334565775,1723230632267,-442.10150843,9.909e-05,2]
[334565776,1723230632279,-9.8234193,0.0001,2]
[334565779,1723230638095,-360.18505011,0.0001,2]
[334565784,1723230638176,-179.99153059,0.0001,2]
[334565786,1723230638185,-192.07,0.00010001,2]
[334565788,1723230638195,-150.99,0.00010001,2]
[334565789,1723230638204,-499.99,0.00010001,2]
[334565790,1723230638213,-176.7,0.0001001,2]
[334565791,1723230638223,-707.51,0.00010015,2]
[334565792,1723230638232,-150.0,0.00010192,2]
[334565793,1723230638241,-428.19,0.00010192,2]
[334565794,1723230638251,-373.84,0.00010466,2]
[334565795,1723230638260,-150.0,0.0001048,2]
[334565796,1723230638270,-926.76458459,0.00010481,2]
[334565797,1723230638281,-73.22541541,0.00010481,2]
[334565798,1723230638290,-420.86,0.000105,2]
[334565799,1723230638299,-144.16307012,0.0001078,2]
[334565800,1723230638476,-859.37257109,0.0001078,2]
[334565801,1723230638486,-9058.67091685,0.00010889,2]
[334565802,1723230638495,-864.72109,0.0001089,2]
[334565803,1723230638505,-3028.0524,0.0001089,2]
[334565804,1723230638515,-1932.03,0.0001089,2]
[334565805,1723230638524,-61826.1902,0.00010899,2]
[334565806,1723230638533,-349.09102783,0.00010899,2]
[334565807,1723230638543,-349.09102776,0.00010899,2]
[334565808,1723230638553,-349.09102776,0.00010899,2]
[334565809,1723230638563,-349.09102776,0.00010899,2]
[334565810,1723230638572,-349.09102776,0.00010899,2]
[334565811,1723230638582,-349.09102776,0.00010899,2]
[334565812,1723230638596,-349.09102776,0.00010899,2]
[334565813,1723230638605,-349.09102776,0.00010899,2]
[334565814,1723230638616,-349.09102776,0.00010899,2]
[334565815,1723230638625,-3520.9278,0.000109,2]
[334565816,1723230638636,-3317.5461,0.000109,2]
[334565817,1723230638646,-475.1075,0.000109,2]
[334565818,1723230638656,-80680.7455,0.000109,2]
[334565819,1723230638668,-171.85912976,0.000109,2]
[334565820,1723230638678,-349.09102776,0.000109,2]
[334565821,1723230638687,-167.16366305,0.000109,2]
[334565822,1723230638696,-201.78608962,0.000109,2]
[334565823,1723230638706,-7014.23,0.00010959,2]
[334565824,1723230638715,-150.0,0.00010959,2]
[334565825,1723230638724,-250.0,0.00010959,2]
[334565826,1723230638734,-893.38,0.00010959,2]
[334565828,1723230638744,-200.0,0.00010973,2]
[334565829,1723230638753,-200.0,0.00010973,2]
[334565830,1723230638763,-306.66432194,0.00010989,2]
[334565831,1723230638773,-370.35781124,0.00010989,2]
[334565832,1723230638782,-218.46184781,0.00010989,2]
[334565833,1723230638791,-1007.88,0.00010989,2]
[334565834,1723230638801,-500.2320694,0.00010997,2]
[334565835,1723230638810,-509.11573647,0.00010997,2]
[334565836,1723230638820,-158.3184891,0.00010998,2]
[334565837,1723230638830,-8951.2818303,0.00010998,2]
[334565838,1723230638839,-462.7532596,0.00010998,2]
[334565839,1723230638848,-1797.4812611,0.00010998,2]
[334565840,1723230638858,-298.5613894,0.00010998,2]
[334565841,1723230638867,-188.88706551,0.00010998,2]
[334565842,1723230638877,-221.9947463,0.00010998,2]
[334565843,1723230638887,-500.0,0.00010998,2]
[334565844,1723230638897,-1629.06500109,0.00010999,3]
[334565845,1723230638907,-1007.88,0.00010999,2]
[334565846,1723230638917,-1007.88,0.00010999,2]
[334565847,1723230638927,-1007.88,0.00010999,2]
[334565848,1723230638937,-1007.88,0.00010999,2]
[334565849,1723230638946,-1007.88,0.00010999,2]
[334565850,1723230638956,-1007.88,0.00010999,2]
[334565851,1723230638965,-1007.88,0.00010999,2]
[334565852,1723230638974,-1007.88,0.00010999,2]
[334565853,1723230638984,-1007.88,0.00010999,2]
[334565854,1723230638993,-1007.88,0.00010999,2]
[334565855,1723230639003,-1007.88,0.00010999,2]
[334565856,1723230639012,-1007.88,0.00010999,2]
[334565857,1723230639022,-1007.88,0.00010999,2]
[334565858,1723230639031,-1007.88,0.00010999,2]
[334565859,1723230639041,-1007.88,0.00010999,2]
[334565860,1723230639051,-1007.88,0.00010999,2]
[334565861,1723230639060,-1007.88,0.00010999,2]
[334565862,1723230639070,-1007.88,0.00010999,2]
[334565863,1723230639079,-1007.88,0.00010999,2]
[334565864,1723230639089,-1007.88,0.00010999,2]
[334565865,1723230639099,-1007.88,0.00010999,2]
[334565866,1723230639108,-1007.88,0.00010999,2]
[334565867,1723230639117,-1007.95740649,0.00010999,2]
[334565868,1723230639127,-150.01,0.00010999,2]
[334565869,1723230639137,-500.0,0.00010999,2]
[334565870,1723230639146,-500.0,0.00010999,2]
[334565871,1723230639156,-500.0,0.00010999,2]
[334565872,1723230639166,-500.0,0.00010999,2]
[334565873,1723230639175,-500.0,0.00010999,2]
[334565874,1723230639184,-500.0,0.00010999,2]
[334565875,1723230639194,-500.0,0.00010999,2]
[334565876,1723230639203,-500.0,0.00010999,2]
[334565877,1723230639213,-500.0,0.00010999,2]
[334565878,1723230639223,-500.0,0.00010999,2]
[334565879,1723230639232,-500.0,0.00010999,2]
[334565880,1723230639242,-500.0,0.00010999,2]
[334565881,1723230639251,-500.0,0.00010999,2]
[334565882,1723230639260,-500.0,0.00010999,2]
[334565883,1723230639270,-500.0,0.00010999,2]
[334565884,1723230639279,-500.0,0.00010999,2]
[334565885,1723230639288,-558.5054087,0.00010999,2]
[334565886,1723230639298,-558.5054087,0.00010999,2]
[334565887,1723230639308,-500.0,0.00010999,2]
[334565888,1723230639318,-389.50419194,0.00010999,2]
[334565889,1723230639327,-558.5054087,0.00010999,2]
[334565890,1723230639337,-500.0,0.00010999,2]
[334565891,1723230639347,-558.5054087,0.00010999,2]
[334565892,1723230639356,-519.40523966,0.00010999,2]
[334565893,1723230639366,-558.5054087,0.00010999,2]
[334565894,1723230639376,-183.23314245,0.00010999,2]
[334565895,1723230639386,-558.5054087,0.00010999,2]
[334565896,1723230639396,-558.5054087,0.00010999,2]
[334565897,1723230639406,-558.5054087,0.00010999,2]
[334565898,1723230639416,-558.5054087,0.00010999,2]
[334565899,1723230639426,-558.5054087,0.00010999,2]
[334565900,1723230639435,-558.5054087,0.00010999,2]
[334565901,1723230639447,-558.5054087,0.00010999,2]
[334565902,1723230639460,-558.5054087,0.00010999,2]
[334565903,1723230639472,-558.5054087,0.00010999,2]
[334565904,1723230639485,-558.5054087,0.00010999,2]
[334565905,1723230639497,-558.5054087,0.00010999,2]
[334565906,1723230639507,-558.5054087,0.00010999,2]
[334565907,1723230639518,-558.5054087,0.00010999,2]
[334565908,1723230639529,-558.5054087,0.00010999,2]
[334565909,1723230639540,-558.5054087,0.00010999,2]
[334565910,1723230639551,-558.5054087,0.00010999,2]
[334565911,1723230639562,-558.5054087,0.00010999,2]
[334565912,1723230639574,-558.5054087,0.00010999,2]
[334565913,1723230639586,-558.5054087,0.00010999,2]
[334565914,1723230639601,-558.5054087,0.00010999,2]
[334565915,1723230639613,-558.5054087,0.00010999,2]
[334565916,1723230639625,-558.5054087,0.00010999,2]
[334565917,1723230639639,-558.5054087,0.00010999,2]
[334565918,1723230639651,-558.5054087,0.00010999,2]
[334565919,1723230639662,-558.5054087,0.00010999,2]
[334565920,1723230639675,-558.5054087,0.00010999,2]
[334565921,1723230639688,-558.5054087,0.00010999,2]
[334565922,1723230639699,-558.5054087,0.00010999,2]
[334565923,1723230639712,-558.5054087,0.00010999,2]
[334565924,1723230639724,-558.5054087,0.00010999,2]
[334565925,1723230639737,-558.5054087,0.00010999,2]
[334565926,1723230639748,-558.5054087,0.00010999,2]
[334565927,1723230639760,-558.5054087,0.00010999,2]
[334565928,1723230639772,-558.5054087,0.00010999,2]
[334565929,1723230639782,-558.5054087,0.00010999,2]
[334565930,1723230639792,-558.5054087,0.00010999,2]
[334565931,1723230639803,-558.5054087,0.00010999,2]
[334565932,1723230639814,-558.5054087,0.00010999,2]
[334565933,1723230639823,-558.5054087,0.00010999,2]
[334565934,1723230639836,-558.5054087,0.00010999,2]
[334565935,1723230639847,-558.5054087,0.00010999,2]
[334565936,1723230639858,-558.5054087,0.00010999,2]
[334565937,1723230639871,-558.5054087,0.00010999,2]
[334565938,1723230639883,-558.5054087,0.00010999,2]
[334565939,1723230639895,-558.5054087,0.00010999,2]
[334565940,1723230639911,-558.5054087,0.00010999,2]
[334565941,1723230639923,-558.5054087,0.00010999,2]
[334565942,1723230639934,-558.5054087,0.00010999,2]
[334565943,1723230639944,-558.5054087,0.00010999,2]
[334565944,1723230639954,-558.5054087,0.00010999,2]
[334565945,1723230639964,-558.5054087,0.00010999,2]
[334565946,1723230639974,-558.5054087,0.00010999,2]
[334565947,1723230639985,-558.5054087,0.00010999,2]
[334565948,1723230639996,-558.5054087,0.00010999,2]
[334565949,1723230640008,-558.5054087,0.00010999,2]
[334565950,1723230640019,-558.5054087,0.00010999,2]
[334565951,1723230640031,-558.5054087,0.00010999,2]
[334565952,1723230640042,-558.5054087,0.00010999,2]
[334565953,1723230640051,-558.5054087,0.00010999,2]
[334565954,1723230640062,-558.5054087,0.00010999,2]
[334565955,1723230640074,-558.5054087,0.00010999,2]
[334565956,1723230640085,-544.54277348,0.00010999,2]
[334565957,1723230640097,-544.54277348,0.00010999,2]
[334565958,1723230640108,-544.54277348,0.00010999,2]
[334565959,1723230640120,-544.54277348,0.00010999,2]
[334565960,1723230640131,-544.54277348,0.00010999,2]
[334565961,1723230640141,-544.54277348,0.00010999,2]
[334565962,1723230640152,-544.54277348,0.00010999,2]
[334565963,1723230640162,-544.54277348,0.00010999,2]
[334565964,1723230640172,-544.54277348,0.00010999,2]
[334565966,1723230640183,-544.54277348,0.00010999,2]
[334565968,1723230640193,-544.54277348,0.00010999,2]
[334565969,1723230640204,-544.54277348,0.00010999,2]
[334565970,1723230640215,-544.54277348,0.00010999,2]
[334565971,1723230640226,-544.54277348,0.00010999,2]
[334565972,1723230640236,-544.54277348,0.00010999,2]
[334565973,1723230640246,-544.54277348,0.00010999,2]
[334565974,1723230640258,-544.54277348,0.00010999,2]
[334565975,1723230640269,-544.54277348,0.00010999,2]
[334565976,1723230640280,-544.54277348,0.00010999,2]
[334565977,1723230640291,-544.54277348,0.00010999,2]
[334565978,1723230640302,-544.54277348,0.00010999,2]
[334565979,1723230640312,-544.54277348,0.00010999,2]
[334565980,1723230640323,-544.54277348,0.00010999,2]
[334565981,1723230640334,-544.54277348,0.00010999,2]
[334565982,1723230640344,-546.0,0.00011,2]
[334565983,1723230640355,-24508.14440014,0.00011,2]
[334565984,1723230640366,-1978830.84261315,0.00011,2]
[334566007,1723230640902,-404954.00231383,0.00011,2]
[334566010,1723230640916,-86722.62371872,0.00011,2]
[334566012,1723230640932,-313.147835,0.00011,2]
[334566058,1723230641377,-943.98485387,0.00011,2]
[334566061,1723230641390,-892.40355142,0.00011,2]
[334566063,1723230641406,-760.32601188,0.00011,2]
[334566065,1723230641426,-372.50946649,0.00011,2]
[334566068,1723230641439,-1224.96970469,0.00011,2]
[334566070,1723230641451,-12921.63839813,0.00011,2]
[334566073,1723230641464,-191816.25507628,0.00011,2]
[334566075,1723230641477,-887.21917443,0.00011,2]
[334566077,1723230641490,-4534.98122466,0.00011,2]
[334566209,1723230644131,-831.872596,0.00011,2]
[334566210,1723230644143,-296.95776435,0.00011,2]
[334566211,1723230644155,-566.62860673,0.00011,2]
[334566212,1723230644167,-6645.17838912,0.00011,2]
[334566213,1723230644199,-317.58278286,0.00011,2]
[334566214,1723230644210,-457.46955249,0.00011,2]
[334566215,1723230644221,-1777.28742832,0.00011,2]
[334566216,1723230644232,-6950.22205377,0.00011,2]
[334566217,1723230644249,-200.0,0.00010973,2]
[334566218,1723230644258,-31060.49999999,0.00011,2]
[334566223,1723230646377,-436.81,0.00011,2]
[334566224,1723230646389,-279.6363521,0.00011,2]
[334566225,1723230646400,-1560.95,0.00011,2]
[334566226,1723230646453,-497.20557296,0.00011,2]
[334566227,1723230646466,-376.87925389,0.00011,2]
[334566228,1723230646527,-1601.37202882,0.00011,2]
[334566229,1723230646539,-2693.82653913,0.00011,2]
[334566293,1723230869639,-766.0,0.00010737,2]
[334566294,1723230869661,-402.36488711,0.00010799,2]
[334566295,1723230869681,-1539.2452,0.000108,2]
[334566296,1723230869702,-300.0,0.00010899,2]
[334566297,1723230869721,-150.0,0.000109,2]
[334566298,1723230869894,-280.6674,0.000109,2]
[334566299,1723230869915,-28661.7256,0.000109,2]
[334566300,1723230869935,-945.81972426,0.000109,2]
[334566301,1723230869956,-150.0,0.00010959,2]
[334566302,1723230869976,-200.0,0.00010973,2]
[334566303,1723230869997,-281.21345957,0.00010994,2]
[334566304,1723230870018,-150.0,0.00010997,2]
[334566305,1723230870038,-7172.96372906,0.00010998,2]
[334566307,1723230928440,374.29,8.91e-05,2]
[334566310,1723231495050,355.57,8.495e-05,2]
[334566311,1723231536035,5160.15,9.5e-05,2]
[334566341,1723231832348,-550.0,0.0001,2]
[334566342,1723231832358,-191.03999424,0.00010297,2]
[334566343,1723231832368,-1000.0,0.0001044,2]
[334566344,1723231832378,-264.569331,0.00010583,2]
[334566345,1723231832388,-1372.8615,0.00010637,2]
[334566346,1723231832398,-355.57,0.00010759,2]
[334566347,1723231832408,-175.79,0.00010783,2]
[334566348,1723231832418,-155.0,0.000108,2]
[334566349,1723231832428,-303.87313893,0.000108,2]
[334566350,1723231832437,-155.04616194,0.000108,2]
[334566351,1723231832447,-257.72735466,0.000108,2]
[334566352,1723231832456,-835.07,0.000108,2]
[334566353,1723231832466,-77.43717523,0.000108,2]
[334566354,1723231832477,-500.0,0.000108,2]
[334566355,1723231832489,-257.63282477,0.000108,2]
[334566356,1723231832498,-300.0,0.00010878,2]
[334566357,1723231832507,-150.0,0.00010878,2]
[334566358,1723231832516,-499.99,0.00010879,2]
[334566359,1723231832526,-1874.41334648,0.00010879,2]
[334566360,1723231832538,-899.999998,0.00010879,2]
[334566361,1723231832553,-609.86344662,0.00010879,2]
[334566381,1723231838337,-1278.55613373,0.00010879,2]
[334566382,1723231838425,-282.48007,0.00010879,2]
[334566383,1723231838436,-500.54133244,0.00010879,2]
[334566384,1723231838493,-1003.59623625,0.00010879,2]
[334566385,1723231838672,-1544.59184008,0.00010879,2]
[334566416,1723231840864,-389.01,0.00010879,2]
[334566418,1723231840878,-3631.5,0.00010879,2]
[334566421,1723231840891,-5977.0975964,0.00010879,2]
[334566423,1723231840901,-8366.19805187,0.0001088,2]
[334566425,1723231840912,-720.60091,0.0001089,2]
[334566427,1723231840923,-575.44027967,0.00010899,2]
[334566429,1723231840933,-575.4402796,0.00010899,2]
[334566431,1723231840947,-575.4402796,0.00010899,2]
[334566433,1723231840958,-575.4402796,0.00010899,2]
[334566435,1723231840970,-575.4402796,0.00010899,2]
[334566437,1723231840982,-575.4402796,0.00010899,2]
[334566440,1723231840994,-575.4402796,0.00010899,2]
[334566442,1723231841005,-575.4402796,0.00010899,2]
[334566444,1723231841018,-575.4402796,0.00010899,2]
[334566446,1723231841031,-1000.0,0.000109,2]
[334566448,1723231841043,-26556.4543,0.000109,2]
[334566451,1723231841055,-1543.6991,0.000109,2]
[334566453,1723231841067,-948.265,0.000109,2]
[334566455,1723231841078,-2647.4202,0.000109,2]
[334566457,1723231841089,-835.07,0.000109,2]
[334566459,1723231841099,-575.4402796,0.000109,2]
[334566461,1723231841109,-162.32777207,0.000109,2]
[334566463,1723231841119,-420.67,0.00010937,2]
[334566464,1723231841129,-500.0,0.00010989,2]
[334566465,1723231841139,-500.0,0.00010989,2]
[334566466,1723231841149,-500.0,0.00010989,2]
[334566467,1723231841161,-500.0,0.00010989,2]
[334566468,1723231841173,-500.0,0.00010989,2]
[334566469,1723231841184,-500.0,0.00010989,2]
[334566470,1723231841196,-500.0,0.00010989,2]
[334566471,1723231841205,-500.0,0.00010989,2]
[334566472,1723231841215,-500.0,0.00010989,2]
[334566473,1723231841228,-328.14159902,0.00010989,2]
[334566474,1723231841239,-500.0,0.00010989,2]
[334566475,1723231841249,-500.0,0.00010989,2]
[334566476,1723231841260,-385.50510939,0.00010989,2]
[334566477,1723231841271,-202044.15411735,0.0001099,3]
[334566486,1723231841376,-6351.28375984,0.0001099,3]
[334566490,1723231843202,-311.7686698,0.0001099,3]
[334566491,1723231843216,-751.00544281,0.0001099,3]
[334566492,1723231843267,-328.39001,0.0001099,3]
[334566493,1723231843280,-674.16794245,0.0001099,3]
[334566494,1723231843320,-463.3999995,0.0001099,3]
[334566495,1723231843610,-444.24779552,0.0001099,3]
[334566496,1723231843623,-6644.55524363,0.0001099,3]
[334566497,1723231843635,-6802.53090105,0.0001099,3]
[334566498,1723231843648,-338.33948636,0.0001099,3]
[334566501,1723231845119,-2447.60779868,0.0001099,3]
[334566502,1723231845131,-7440.45079688,0.0001099,3]
[334566503,1723231845177,-571.571,0.0001099,3]
[334566504,1723231845189,-529.685291,0.0001099,3]
[334566524,1723231846375,-1115.19868668,0.0001099,3]
[334566525,1723231846386,-1816.696712,0.0001099,3]
[334566526,1723231846396,-616.76,0.0001099,3]
[334566527,1723231846407,-844.76711332,0.0001099,3]
[334566528,1723231846419,-3315.79394442,0.0001099,3]
[334566560,1723232032880,320.01,8.219e-05,2]
[334566561,1723232489484,304.0,8.219e-05,2]
[334566596,1723233032462,-200.0,9.968e-05,2]
[334566597,1723233032471,-1667.0,0.00010001,2]
[334566598,1723233032481,-288.01,0.00010002,2]
[334566599,1723233032490,-439.90292791,0.00010002,2]
[334566600,1723233032500,-300.0,0.00010004,2]
[334566601,1723233032509,-12116.22783209,0.00010005,2]
[334566602,1723233032587,-5692.9905367,0.00010005,2]
[334566608,1723233038450,-6035.8958172,0.00010005,2]
[334566609,1723233038463,-4300.54485729,0.00010005,2]
[334566610,1723233038473,-2025.71,0.00010006,2]
[334566611,1723233038482,-800.0,0.0001008,2]
[334566612,1723233038492,-1367.9544,0.00010349,2]
[334566613,1723233038501,-304.0,0.00010476,2]
[334566614,1723233038511,-186.65,0.00010533,2]
[334566615,1723233038520,-150.0,0.000106,2]
[334566616,1723233038529,-2195.28351305,0.00010879,2]
[334566617,1723233038541,-1203.88782761,0.00010879,2]
[334566618,1723233038553,-782.42871167,0.00010879,2]
[334566619,1723233038586,-450.29701141,0.00010879,2]
[334566620,1723233038598,-426.46526203,0.00010879,2]
[334566621,1723233038609,-1591.47070693,0.00010879,2]
[334566622,1723233038623,-993.17400186,0.00010879,2]
[334566623,1723233038632,-343.28830761,0.0001089,2]
[334566624,1723233038641,-150.0,0.00010898,2]
[334566625,1723233038651,-173.97896483,0.00010899,2]
[334566626,1723233038660,-173.97896481,0.00010899,2]
[334566627,1723233038671,-173.97896481,0.00010899,2]
[334566628,1723233038680,-173.97896481,0.00010899,2]
[334566629,1723233038690,-173.97896481,0.00010899,2]
[334566630,1723233038699,-173.97896481,0.00010899,2]
[334566631,1723233038709,-173.97896481,0.00010899,2]
[334566632,1723233038719,-173.97896481,0.00010899,2]
[334566633,1723233038729,-173.97896481,0.00010899,2]
[334566634,1723233038738,-173.97896481,0.000109,2]
[334566635,1723233038748,-218.26163395,0.000109,2]
[334566636,1723233038780,-418.82836605,0.000109,2]
[334566637,1723233038790,-364.62640346,0.000109,2]
[334566640,1723233040352,-56.23359654,0.000109,2]
[334566642,1723233040364,-169.52892448,0.00010987,2]
[334566644,1723233040375,-121.74404634,0.00010988,2]
[334566645,1723233040894,-611.85972127,0.00010988,2]
[334566648,1723233040905,-24.99591618,0.00010988,2]
[334566650,1723233040915,-500.0,0.00010989,2]
[334566652,1723233040925,-500.0,0.00010989,2]
[334566654,1723233040934,-500.0,0.00010989,2]
[334566656,1723233040944,-500.0,0.00010989,2]
[334566658,1723233040954,-500.0,0.00010989,2]
[334566660,1723233040964,-500.0,0.00010989,2]
[334566662,1723233040973,-500.0,0.00010989,2]
[334566664,1723233040982,-500.0,0.00010989,2]
[334566666,1723233040991,-500.0,0.00010989,2]
[334566668,1723233041000,-500.0,0.00010989,2]
[334566670,1723233041010,-500.0,0.00010989,2]
[334566672,1723233041019,-412.92956357,0.00010989,2]
[334566674,1723233041028,-500.0,0.00010989,2]
[334566676,1723233041038,-500.0,0.00010989,2]
[334566678,1723233041048,-500.0,0.00010989,2]
[334566680,1723233041058,-500.0,0.00010989,2]
[334566682,1723233041067,-500.0,0.00010989,2]
[334566684,1723233041077,-500.0,0.00010989,2]
[334566686,1723233041087,-500.0,0.00010989,2]
[334566688,1723233041097,-500.0,0.00010989,2]
[334566690,1723233041106,-500.0,0.00010989,2]
[334566692,1723233041116,-500.0,0.00010989,2]
[334566694,1723233041125,-500.0,0.00010989,2]
[334566696,1723233041134,-500.0,0.00010989,2]
[334566698,1723233041144,-500.0,0.00010989,2]
[334566701,1723233041153,-500.0,0.00010989,2]
[334566703,1723233041163,-500.0,0.00010989,2]
[334566705,1723233041172,-250.0,0.00010989,2]
[334566707,1723233041181,-231.67401493,0.00010989,2]
[334566709,1723233041191,-500.0,0.00010989,2]
[334566711,1723233041200,-500.0,0.00010989,2]
[334566713,1723233041215,-500.0,0.00010989,2]
[334566715,1723233041227,-500.0,0.00010989,2]
[334566717,1723233041242,-600.50076,0.00010989,2]
[334566720,1723233041255,-500.0,0.00010989,2]
[334566722,1723233041266,-500.0,0.00010989,2]
[334566724,1723233041277,-500.0,0.00010989,2]
[334566726,1723233041291,-500.0,0.00010989,2]
[334566729,1723233041302,-2417.95,0.00010989,2]
[334566731,1723233041314,-2417.95,0.00010989,2]
[334566733,1723233041325,-2417.95,0.00010989,2]
[334566735,1723233041336,-533363.75713719,0.0001099,3]
[334566738,1723233041350,-1761.72,0.0001099,3]
[334566740,1723233041363,-635.093,0.0001099,3]
[334566742,1723233041377,-124417.25921189,0.0001099,3]
[334566745,1723233041390,-807.73443717,0.0001099,3]
[334566747,1723233041405,-2916.0,0.0001099,3]
[334566750,1723233041419,-1547.0,0.0001099,3]
[334566784,1723233043552,-5655.250559,0.0001099,3]
[334566786,1723233044854,-5503.0,0.0001099,3]
[334566787,1723233044867,-466.32906793,0.0001099,3]
[334566788,1723233044879,-2489.39880308,0.0001099,3]
[334566824,1723233046535,-3430.17014427,0.0001099,3]
[334566833,1723233046603,-26965.36510827,0.0001099,3]
[334566841,1723233046672,-2731.66928268,0.0001099,3]
[334566849,1723233046741,-26027.400849,0.0001099,3]
[334566851,1723233046752,-1048.0,0.0001099,3]
[334566853,1723233046764,-349.73605119,0.0001099,3]
[334566855,1723233046775,-19995.303564,0.0001099,3]
[334566858,1723233123633,398.5,8.474e-05,2]
[334566860,1723233470388,250.0,9.295e-05,2]
[334566861,1723233547731,23900.0,9.309e-05,2]
[334566862,1723233549770,169.59,9.309e-05,2]
[334566863,1723233602771,150.0,9.309e-05,2]
[334566864,1723233611636,428.52,8.219e-05,2]
[334566865,1723233625088,826.92,9.276e-05,2]
[334566867,1723233831094,786.8,9.384e-05,2]
[334566868,1723233834183,160.0,9.395e-05,2]
[334566869,1723233943636,237.86,9.407e-05,2]
[334566870,1723234042835,169.6,9.411e-05,2]
[334566871,1723234100980,407.09,8.219e-05,2]
[334566872,1723234116300,2305.54,9.412e-05,2]
[334566881,1723234231439,-215.48,9.733e-05,2]
[334566883,1723234231449,-266.23,9.782e-05,2]
[334566885,1723234231459,-176.7,9.784e-05,2]
[334566887,1723234231468,-266.23,9.784e-05,2]
[334566888,1723234231477,-75.36,9.787e-05,2]